bitfinex/quotes_BTCUSD_20250221
["timestamp","ask_amount","ask_price","bid_price","bid_amount"]
[1740147855010,0.151351,99107.0,99106.0,0.10564569]
[1740147855150,0.151351,99107.0,99106.0,0.10764569]
[1740147855576,0.151351,99107.0,99106.0,0.10564569]
[1740147855988,0.151351,99108.0,99106.0,0.10564569]
[1740147856187,0.151351,99107.0,99106.0,0.10564569]
[1740147856479,0.151351,99107.0,99106.0,0.10264569]
[1740147856877,0.151351,99107.0,99106.0,0.10464569]
[1740147857098,0.201793,99112.0,99106.0,0.10264569]
[1740147857316,0.201794,99111.0,99106.0,0.10464569]
[1740147857518,0.20179,99113.0,99106.0,0.10464569]
[1740147857721,0.201787,99114.0,99106.0,0.10764569]
[1740147857917,0.151348,99109.0,99106.0,0.10764569]
[1740147858122,0.151348,99109.0,99106.0,0.10564569]
[1740147858318,0.151348,99109.0,99106.0,0.10264569]
[1740147858564,0.151348,99109.0,99106.0,0.10564569]
[1740147858687,0.151351,99108.0,99106.0,0.10564569]
[1740147858887,0.0008517,99112.0,99106.0,0.10564569]
[1740147859340,0.151351,99107.0,99106.0,0.10564569]
[1740147859549,0.0008517,99112.0,99106.0,0.10564569]
[1740147859769,0.151348,99110.0,99106.0,0.10464569]
[1740147860149,0.151349,99109.0,99107.0,0.0078]
[1740147860489,0.151349,99109.0,99107.0,0.11044569]
[1740147860721,0.15135,99108.0,99107.0,0.11044569]
[1740147861899,0.15135,99108.0,99107.0,0.11344569]
[1740147862920,0.15135,99108.0,99107.0,0.11544569]
[1740147863146,0.15135,99108.0,99107.0,0.11344569]
[1740147863585,0.15135,99108.0,99107.0,0.11644569]
[1740147867054,0.15135,99108.0,99107.0,0.11175743]
[1740147867741,0.151348,99110.0,99107.0,0.11175743]
[1740147867953,0.151348,99109.0,99107.0,0.11175743]
[1740147868180,0.15135,99108.0,99107.0,0.11175743]
[1740147869316,0.15135,99108.0,99107.0,0.10875743]
[1740147869518,0.15135,99108.0,99107.0,0.11075743]
[1740147869720,0.151348,99110.0,99107.0,0.10875743]
[1740147869842,0.201793,99111.0,99107.0,0.10575743]
[1740147870047,0.15135,99108.0,99107.0,0.10775743]
[1740147870246,0.15135,99108.0,99107.0,0.11075743]
[1740147870892,0.0008517,99112.0,99107.0,0.10575743]
[1740147871094,0.151347,99110.0,99107.0,0.10775743]
[1740147871267,0.0008517,99112.0,99107.0,0.10975743]
[1740147871676,0.0008517,99112.0,99111.0,0.151345]
[1740147871931,0.0008517,99112.0,99111.0,0.25520134]
[1740147872138,0.0008517,99112.0,99111.0,1.2686194]
[1740147872526,0.0008517,99112.0,99111.0,1.1172744]
[1740147872889,0.1521947,99112.0,99111.0,1.1172744]
[1740147873283,0.1521947,99112.0,99111.0,1.1259944]
[1740147873992,0.1521947,99112.0,99111.0,1.1269944]
[1740147875305,0.0008517,99112.0,99111.0,1.1269944]
[1740147875500,0.0008517,99112.0,99111.0,1.2783394]
[1740147875955,0.0008517,99112.0,99111.0,1.3591394]
[1740147876153,0.0008517,99112.0,99111.0,1.4079394]
[1740147878568,0.0008517,99112.0,99111.0,1.4002194]
[1740147878765,0.0008517,99112.0,99111.0,1.4079394]
[1740147879844,0.0008517,99112.0,99111.0,1.4002194]
[1740147880036,0.0008517,99112.0,99111.0,1.4079394]
[1740147886161,0.0008517,99112.0,99111.0,1.1192744]
[1740147886376,0.0008517,99112.0,99111.0,1.1269944]
[1740147886780,0.0008517,99112.0,99111.0,1.2783394]
[1740147887891,0.0008517,99112.0,99111.0,1.1269944]
[1740147888777,0.0008517,99112.0,99111.0,1.2783394]
[1740147889162,0.0008517,99112.0,99111.0,1.2706194]
[1740147889357,0.0008517,99112.0,99111.0,1.2783394]
[1740147889612,0.0008517,99112.0,99111.0,1.1269944]
[1740147890234,0.0008517,99112.0,99111.0,1.2783394]
[1740147893589,0.0008517,99112.0,99111.0,1.1269944]
[1740147894011,0.0008517,99112.0,99111.0,1.2783394]
[1740147894441,0.0008517,99112.0,99111.0,1.1269944]
[1740147894768,0.0008517,99112.0,99111.0,1.2783394]
[1740147894994,0.0008517,99112.0,99111.0,1.1192744]
[1740147895199,0.0008517,99112.0,99111.0,1.1269944]
[1740147895402,0.1521947,99112.0,99111.0,0.10464569]
[1740147895605,0.1521947,99112.0,99111.0,0.11236569]
[1740147896147,0.1521947,99112.0,99111.0,0.10464569]
[1740147896311,0.0008517,99112.0,99111.0,0.11236569]
[1740147897361,0.1521947,99112.0,99111.0,0.11236569]
[1740147898787,0.0008517,99112.0,99111.0,0.11236569]
[1740147899158,0.0008517,99112.0,99111.0,0.11357629]
[1740147899363,0.0008517,99112.0,99111.0,0.11236569]
[1740147900335,0.0008517,99112.0,99111.0,0.25720134]
[1740147900532,0.0008517,99112.0,99111.0,0.34041069]
[1740147900737,0.0008517,99112.0,99111.0,0.11236569]
[1740147901099,0.1521947,99112.0,99111.0,0.10464569]
[1740147901339,0.1521947,99112.0,99111.0,0.11236569]
[1740147901524,0.1521947,99112.0,99111.0,0.00972]
[1740147901732,0.1521947,99112.0,99111.0,0.00872]
[1740147901926,0.1521947,99112.0,99111.0,0.005]
[1740147902107,0.1521947,99112.0,99111.0,0.004]
[1740147902313,0.1521947,99112.0,99111.0,0.008]
[1740147902728,0.1521947,99112.0,99111.0,0.004]
[1740147902956,0.1521947,99112.0,99111.0,0.001]
[1740147903509,0.16232766,99112.0,99111.0,0.003]
[1740147903744,0.24232766,99112.0,99111.0,0.003]
[1740147903941,0.39232766,99112.0,99111.0,0.003]
[1740147904145,0.44162766,99112.0,99111.0,0.003]
[1740147905272,0.232274,99092.0,99083.0,0.0004316]
[1740147905421,0.151379,99089.0,99084.0,0.11036569]
[1740147905812,0.151382,99088.0,99084.0,0.11036569]
[1740147906016,0.0809,99092.0,99084.0,0.11036569]
[1740147908558,0.151386,99084.0,99083.0,0.0004316]
[1740147909362,0.151386,99084.0,99083.0,0.0044316]
[1740147909827,0.151386,99084.0,99083.0,0.0004316]
[1740147910100,0.151386,99085.0,99083.0,0.0034316]
[1740147910330,0.0469,99103.0,99085.0,0.201846]
[1740147910585,0.151361,99101.0,99087.0,0.15138]
[1740147910816,0.0817,99104.0,99088.0,0.10385661]
[1740147911049,0.151373,99093.0,99088.0,0.10264569]
[1740147911303,0.15636144,99100.0,99088.0,0.10264569]
[1740147911496,0.15636144,99100.0,99084.0,0.003]
[1740147911701,0.201818,99099.0,99084.0,0.003]
[1740147911990,0.151385,99085.0,99084.0,0.003]
[1740147912625,0.0826,99086.0,99083.0,0.0004316]
[1740147912626,0.151386,99084.0,99083.0,0.0024316]
[1740147913025,0.151386,99084.0,99083.0,0.0004316]
[1740147914955,0.13900924,99084.0,99083.0,0.0004316]
[1740147917001,0.13896924,99084.0,99083.0,0.0004316]
[1740147920481,0.078,99096.0,99083.0,0.0004316]
[1740147920634,0.151376,99091.0,99083.0,0.00164257]
[1740147920861,0.0772,99102.0,99084.0,0.10264569]
[1740147921077,0.0772,99102.0,99085.0,0.00121097]
[1740147921283,0.0772,99102.0,99086.0,0.10264569]
[1740147921506,0.0463,99104.0,99087.0,0.20305191]
[1740147921744,0.201812,99102.0,99088.0,0.10264569]
[1740147921949,0.151368,99096.0,99089.0,0.00121089]
[1740147922163,0.15137,99095.0,99089.0,0.10264569]
[1740147922373,0.201802,99107.0,99089.0,0.10264569]
[1740147922576,0.151363,99099.0,99089.0,0.10264569]
[1740147923009,0.151363,99099.0,99089.0,0.10364569]
[1740147923242,0.06846378,99108.0,99089.0,0.10364569]
[1740147923415,0.06846378,99108.0,99089.0,0.10564569]
[1740147923618,0.201817,99100.0,99089.0,0.10264569]
[1740147923921,0.151367,99097.0,99089.0,0.10264569]
[1740147924326,0.151368,99096.0,99089.0,0.10264569]
[1740147924531,0.151366,99097.0,99089.0,0.10264569]
[1740147924830,0.151366,99098.0,99089.0,0.10264569]
[1740147925171,0.06846378,99108.0,99089.0,0.10264569]
[1740147925306,0.151366,99098.0,99089.0,0.10264569]
[1740147925707,0.151366,99098.0,99089.0,0.10364569]
[1740147925916,0.151366,99098.0,99089.0,0.10264569]
[1740147926230,0.151368,99097.0,99089.0,0.10364569]
[1740147927067,0.151368,99097.0,99089.0,0.10264569]
[1740147927269,0.151365,99098.0,99089.0,0.10264569]
[1740147928041,0.151366,99097.0,99089.0,0.10264569]
[1740147928226,0.151368,99096.0,99089.0,0.10264569]
[1740147928434,0.151368,99096.0,99089.0,0.10364569]
[1740147928659,0.151366,99098.0,99089.0,0.10364569]
[1740147928864,0.1522168,99098.0,99089.0,0.001]
[1740147929078,0.0008508,99098.0,99089.0,0.001]
[1740147929463,0.151368,99097.0,99089.0,0.001]
[1740147929668,0.0008508,99098.0,99089.0,0.002]
[1740147929878,0.0008508,99098.0,99090.0,0.151376]
[1740147930082,0.0008508,99098.0,99097.0,0.151366]
[1740147930296,0.0008508,99098.0,99097.0,0.25401169]
[1740147932115,0.0008508,99098.0,99097.0,0.65921169]
[1740147932460,0.0008508,99098.0,99097.0,0.67375254]
[1740147932898,0.0008508,99098.0,99097.0,0.68075254]
[1740147933471,0.0008508,99098.0,99097.0,0.67375254]
[1740147933678,0.0008508,99098.0,99097.0,0.68075254]
[1740147934328,0.0008508,99098.0,99097.0,0.83075254]
[1740147934932,0.0008508,99098.0,99097.0,0.83775254]
[1740147935314,0.0008508,99098.0,99097.0,0.85764542]
[1740147935710,0.0008508,99098.0,99097.0,0.84310457]
[1740147935913,0.0008508,99098.0,99097.0,0.82321169]
[1740147936724,0.0008508,99098.0,99097.0,0.83093169]
[1740147937309,0.0008508,99098.0,99097.0,0.68093169]
[1740147937711,0.0008508,99098.0,99097.0,0.59301169]
[1740147937909,0.0008508,99098.0,99097.0,0.60073169]
[1740147938170,0.0008508,99098.0,99097.0,0.44164569]
[1740147938372,0.0008508,99098.0,99097.0,0.44936569]
[1740147938782,0.0008508,99098.0,99097.0,0.60073169]
[1740147941353,0.0008508,99098.0,99097.0,0.68343169]
[1740147943217,0.0008508,99098.0,99097.0,0.69797254]
[1740147943421,0.0008508,99098.0,99097.0,0.84797254]
[1740147943620,0.0008508,99098.0,99097.0,0.91497254]
[1740147947948,0.0008508,99098.0,99097.0,0.97177254]
[1740147948451,0.0008508,99098.0,99097.0,0.99187401]
[1740147952500,0.0008508,99098.0,99097.0,0.84217401]
[1740147952756,0.0008508,99098.0,99097.0,0.82763316]
[1740147953289,0.0008508,99098.0,99097.0,0.84217401]
[1740147954271,0.0008508,99098.0,99097.0,2.00525564]
[1740147954566,0.0008508,99098.0,99097.0,2.00929664]
[1740147954758,8e-07,99098.0,99097.0,6.83418564]
[1740147954991,8e-07,99098.0,99097.0,2.03456058]
[1740147955379,8e-07,99098.0,99097.0,2.06464476]
[1740147955602,8e-07,99098.0,99097.0,2.56919476]
[1740147955808,8e-07,99098.0,99097.0,3.3051689]
[1740147956212,8e-07,99098.0,99097.0,3.28506743]
[1740147956424,0.0008512,99146.0,99145.0,0.151293]
[1740147956629,0.0008512,99146.0,99145.0,1.2762874]
[1740147957093,0.0008512,99146.0,99145.0,1.26405118]
[1740147957677,0.00098187,99146.0,99145.0,1.26405118]
[1740147958259,0.00098187,99146.0,99145.0,1.27425969]
[1740147959058,0.00098187,99146.0,99145.0,1.27925969]
[1740147959255,0.00098187,99146.0,99145.0,1.28625969]
[1740147959907,0.00098187,99146.0,99145.0,1.61125969]
[1740147960539,0.00098187,99146.0,99145.0,1.76125969]
[1740147960953,0.00098187,99146.0,99145.0,1.77580054]
[1740147961156,0.00098187,99146.0,99145.0,3.37139217]
[1740147961360,0.00098187,99146.0,99145.0,3.45449217]
[1740147961560,0.00098187,99146.0,99145.0,3.48478117]
[1740147961919,0.00098187,99146.0,99145.0,3.47978117]
[1740147962494,8.7e-07,99146.0,99145.0,3.49278117]
[1740147962656,8.7e-07,99146.0,99145.0,3.49978117]
[1740147962878,8.7e-07,99146.0,99145.0,3.50678117]
[1740147963084,8.7e-07,99146.0,99145.0,3.49978117]
[1740147963277,0.0759,99185.0,99169.0,0.151256]
[1740147965659,0.151244,99177.0,99175.0,0.09798893]
[1740147965926,0.201653,99181.0,99175.0,0.10198893]
[1740147966127,0.151244,99178.0,99175.0,0.10198893]
[1740147966343,0.151245,99177.0,99175.0,0.10198893]
[1740147966544,0.201654,99180.0,99175.0,0.10198893]
[1740147966886,0.151244,99178.0,99175.0,0.10198893]
[1740147967066,0.151244,99178.0,99175.0,0.09998893]
[1740147967452,0.151244,99178.0,99175.0,0.10298893]
[1740147967825,0.00098147,99184.0,99175.0,0.10298893]
[1740147968008,0.151246,99176.0,99175.0,0.10298893]
[1740147968560,0.201659,99178.0,99175.0,0.10098893]
[1740147968755,0.201653,99180.0,99175.0,0.09998893]
[1740147968955,0.00098147,99184.0,99175.0,0.10298893]
[1740147969218,0.151243,99179.0,99175.0,0.10098893]
[1740147969361,0.201652,99181.0,99175.0,0.10498893]
[1740147969726,0.151243,99179.0,99175.0,0.09798893]
[1740147969939,0.151246,99177.0,99175.0,0.10198893]
[1740147970093,0.201657,99178.0,99175.0,0.09426893]
[1740147970295,0.00098147,99184.0,99175.0,0.09026893]
[1740147970507,0.151243,99179.0,99175.0,0.09226893]
[1740147970717,0.201652,99181.0,99175.0,0.09426893]
[1740147970922,0.151242,99179.0,99175.0,0.09426893]
[1740147971135,0.201652,99181.0,99175.0,0.09426893]
[1740147971136,0.00098147,99184.0,99175.0,0.09426893]
[1740147971338,0.201651,99182.0,99175.0,0.09426893]
[1740147971779,0.201651,99182.0,99175.0,0.09226893]
[1740147972013,0.151242,99179.0,99175.0,0.09326893]
[1740147972224,0.15124,99180.0,99175.0,0.09426893]
[1740147972416,0.151236,99183.0,99176.0,0.151246]
[1740147972617,0.151236,99183.0,99175.0,0.09326893]
[1740147972834,0.151239,99181.0,99175.0,0.09226893]
[1740147973186,0.151239,99181.0,99175.0,0.09526893]
[1740147973387,0.352885,99183.0,99175.0,0.09226893]
[1740147973761,0.151235,99183.0,99175.0,0.09026893]
[1740147973963,0.151235,99183.0,99175.0,0.09226893]
[1740147974099,0.151238,99181.0,99175.0,0.09226893]
[1740147974314,0.00098147,99184.0,99175.0,0.09226893]
[1740147974524,0.151236,99183.0,99175.0,0.09226893]
[1740147974743,0.00098147,99184.0,99175.0,0.09226893]
[1740147974943,0.151237,99183.0,99175.0,0.09226893]
[1740147975366,0.00098147,99184.0,99177.0,0.151243]
[1740147975564,0.00098147,99184.0,99176.0,0.151245]
[1740147976029,0.15221547,99184.0,99175.0,0.24351593]
[1740147976187,0.15221547,99184.0,99176.0,0.151246]
[1740147976387,0.00098147,99184.0,99176.0,0.151246]
[1740147976868,0.00098147,99184.0,99183.0,0.151235]
[1740147977012,0.00098147,99184.0,99183.0,1.1172744]
[1740147977408,0.00098147,99184.0,99183.0,1.2685094]
[1740147978361,0.15636144,99220.0,99183.0,1.1172744]
[1740147978362,0.04683707,99208.0,99183.0,1.1172744]
[1740147978566,0.04683707,99208.0,99185.0,0.201643]
[1740147978791,0.04683707,99208.0,99207.0,0.151199]
[1740147978975,0.00023707,99208.0,99207.0,0.151199]
[1740147979385,0.00023707,99208.0,99207.0,0.25384469]
[1740147981869,0.00023707,99208.0,99207.0,0.26421597]
[1740147982284,0.00023707,99208.0,99207.0,0.25384469]
[1740147982505,0.00023707,99208.0,99207.0,0.25884469]
[1740147982731,0.00023707,99208.0,99207.0,0.26084469]
[1740147983050,0.00023707,99208.0,99207.0,0.26684469]
[1740147983463,0.00023707,99208.0,99207.0,0.2767233]
[1740147983674,0.00023707,99208.0,99207.0,0.2844433]
[1740147984078,0.00023707,99208.0,99207.0,0.7594433]
[1740147984846,0.00023707,99208.0,99207.0,0.59956469]
[1740147985050,0.00023707,99208.0,99207.0,0.59256469]
[1740147985467,0.00023707,99208.0,99207.0,0.59956469]
[1740147985690,0.00023707,99208.0,99207.0,0.59356469]
[1740147986077,0.00023707,99208.0,99207.0,0.60056469]
[1740147986323,0.00023707,99208.0,99207.0,0.58656469]
[1740147986517,0.00023707,99208.0,99207.0,0.59356469]
[1740147986791,0.00023707,99208.0,99207.0,0.59956469]
[1740147987444,0.00023707,99208.0,99207.0,0.44064569]
[1740147987645,0.00023707,99208.0,99207.0,0.44836569]
[1740147987842,0.15143407,99208.0,99207.0,0.44836569]
[1740147988185,0.00023707,99208.0,99207.0,0.44836569]
[1740147988487,0.00023707,99208.0,99207.0,0.44064569]
[1740147988685,0.00023707,99208.0,99207.0,0.59184469]
[1740147989296,0.00023707,99208.0,99207.0,0.44064569]
[1740147989495,0.00023707,99208.0,99207.0,0.11564569]
[1740147990630,0.15143407,99208.0,99207.0,0.11564569]
[1740147990997,0.15143407,99208.0,99207.0,0.013]
[1740147992217,0.15143407,99208.0,99207.0,0.006]
[1740147992592,0.15143407,99208.0,99207.0,0.009]
[1740147992982,0.15143407,99208.0,99207.0,0.003]
[1740147994002,0.15143407,99208.0,99207.0,0.006]
[1740147994547,0.15143407,99208.0,99207.0,0.01372]
[1740147995552,0.15143407,99208.0,99207.0,0.006]
[1740147996583,0.16386701,99208.0,99207.0,0.006]
[1740147996778,0.16386701,99208.0,99207.0,0.003]
[1740147997601,0.01267001,99208.0,99207.0,0.003]
[1740147997781,0.16386701,99208.0,99207.0,0.003]
[1740147998183,0.15143407,99208.0,99207.0,0.003]
[1740147998903,0.151199,99207.0,99206.0,0.00772]
[1740147999100,0.15122,99193.0,99191.0,1.01462871]
[1740147999340,0.151217,99196.0,99192.0,0.11036569]
[1740147999467,0.20183407,99208.0,99192.0,0.11036569]
[1740147999674,0.151211,99199.0,99193.0,0.151219]
[1740147999905,0.151212,99198.0,99192.0,0.11036569]
[1740148000130,0.151212,99198.0,99192.0,0.26158669]
[1740148000345,0.20183407,99208.0,99192.0,0.11036569]
[1740148000552,0.151214,99197.0,99193.0,0.00772]
[1740148001743,0.151214,99197.0,99194.0,0.00772]
[1740148002976,0.201609,99202.0,99194.0,0.00772]
[1740148003180,0.151212,99199.0,99194.0,0.00772]
[1740148003498,0.201598,99207.0,99196.0,0.201621]
[1740148003705,0.2016,99206.0,99197.0,0.25506826]
[1740148003911,0.00023707,99208.0,99197.0,0.10264569]
[1740148004089,0.151205,99203.0,99198.0,0.00120956]
[1740148004246,0.151205,99203.0,99199.0,0.10264569]
[1740148004446,0.151207,99202.0,99199.0,0.10264569]
[1740148004657,0.151208,99201.0,99199.0,0.10264569]
[1740148005085,0.201598,99207.0,99199.0,0.10264569]
[1740148005314,0.00023707,99208.0,99199.0,0.10264569]
[1740148005515,0.151206,99202.0,99199.0,0.10264569]
[1740148005697,0.151208,99201.0,99199.0,0.10264569]
[1740148006094,0.201598,99207.0,99199.0,0.10264569]
[1740148006297,0.151206,99202.0,99199.0,0.10264569]
[1740148006900,0.20183407,99208.0,99199.0,0.10364569]
[1740148007114,0.151206,99202.0,99199.0,0.10264569]
[1740148008416,0.151208,99201.0,99199.0,0.10264569]
[1740148008831,0.151209,99200.0,99199.0,0.10264569]
[1740148009034,0.151208,99201.0,99199.0,0.10264569]
[1740148009437,0.151209,99200.0,99199.0,0.10264569]
[1740148009639,0.201602,99205.0,99199.0,0.10264569]
[1740148009850,0.151209,99201.0,99199.0,0.10364569]
[1740148010053,0.151209,99201.0,99199.0,0.10264569]
[1740148010401,0.151209,99200.0,99199.0,0.10364569]
[1740148010736,0.151209,99200.0,99199.0,0.10464569]
[1740148011336,0.151209,99200.0,99199.0,0.10364569]
[1740148011550,0.151209,99200.0,99199.0,0.10464569]
[1740148012645,0.151209,99200.0,99199.0,0.10364569]
[1740148012864,0.151209,99200.0,99199.0,0.10464569]
[1740148015929,0.230909,99200.0,99199.0,0.002]
[1740148016727,0.1281,99200.0,99172.0,0.325]
[1740148016970,0.151246,99176.0,99175.0,0.00942]
[1740148017151,0.151246,99176.0,99175.0,0.0017]
[1740148019056,0.151246,99176.0,99175.0,0.0047]
[1740148019480,0.1612355,99176.0,99175.0,0.0047]
[1740148019890,0.1612355,99176.0,99175.0,0.0077]
[1740148020284,0.17369893,99176.0,99175.0,0.0077]
[1740148020690,0.16370943,99176.0,99175.0,0.0077]
[1740148021628,0.01246343,99176.0,99175.0,0.0077]
[1740148022029,0.01246343,99176.0,99175.0,0.0047]
[1740148022229,0.151237,99182.0,99175.0,0.0057]
[1740148022381,0.0455,99187.0,99175.0,0.0057]
[1740148022581,0.05574684,99187.0,99175.0,0.0057]
[1740148022783,0.151246,99176.0,99175.0,0.0057]
[1740148023211,0.151246,99176.0,99175.0,0.0027]
[1740148023410,0.151246,99176.0,99175.0,0.0037]
[1740148023758,0.232246,99176.0,99175.0,0.0017]
[1740148023906,0.232246,99176.0,99175.0,0.0027]
[1740148024325,0.232246,99176.0,99175.0,0.0017]
[1740148024524,0.232246,99176.0,99175.0,0.0027]
[1740148025994,0.232246,99176.0,99175.0,0.0017]
[1740148031083,0.279046,99176.0,99175.0,0.0017]
[1740148031276,0.429046,99176.0,99175.0,0.0017]
[1740148032083,0.54623254,99176.0,99175.0,0.0017]
[1740148033180,0.54623254,99176.0,99175.0,0.0027]
[1740148033378,0.54623254,99176.0,99175.0,0.0017]
[1740148033630,0.54723254,99176.0,99175.0,0.0017]
[1740148033766,0.54723254,99176.0,99175.0,0.0027]
[1740148033945,0.54723254,99176.0,99175.0,0.0017]
[1740148034352,0.54723254,99176.0,99175.0,0.0027]
[1740148034962,0.54623254,99176.0,99175.0,0.0017]
[1740148035165,0.54723254,99176.0,99175.0,0.0027]
[1740148038189,0.430046,99176.0,99175.0,0.0027]
[1740148038799,0.302246,99176.0,99175.0,0.0027]
[1740148039196,0.152246,99176.0,99175.0,0.0027]
[1740148039970,0.151246,99176.0,99175.0,0.0017]
[1740148040381,0.001,99176.0,99175.0,0.0017]
[1740148040604,0.152246,99176.0,99175.0,0.0017]
[1740148040815,0.151246,99176.0,99175.0,0.0017]
[1740148040962,0.152246,99176.0,99175.0,0.0017]
[1740148041374,0.001,99176.0,99175.0,0.0017]
[1740148041579,0.001,99176.0,99175.0,0.160667]
[1740148041774,0.001,99176.0,99175.0,0.31201269]
[1740148041995,0.001,99176.0,99175.0,0.16076569]
[1740148042636,0.001,99176.0,99175.0,0.11206569]
[1740148043280,0.152246,99176.0,99175.0,0.0017]
[1740148043658,0.151246,99176.0,99175.0,0.0077]
[1740148043854,0.151246,99176.0,99175.0,0.0017]
[1740148044059,0.151246,99176.0,99175.0,0.0087]
[1740148044451,0.151246,99176.0,99175.0,0.0017]
[1740148044898,0.151246,99176.0,99175.0,0.0047]
[1740148045302,0.151246,99176.0,99175.0,0.0077]
[1740148046103,0.15,99188.0,99175.0,0.0077]
[1740148046324,0.151245,99177.0,99175.0,0.0077]
[1740148046515,0.151246,99176.0,99175.0,0.0077]
[1740148046922,0.15,99188.0,99175.0,0.0047]
[1740148047114,0.01006645,99194.0,99175.0,0.0047]
[1740148047375,0.201627,99193.0,99175.0,0.0047]
[1740148047680,0.15,99192.0,99175.0,0.0047]
[1740148047791,0.151241,99179.0,99175.0,0.0017]
[1740148047991,0.001,99188.0,99175.0,0.0017]
[1740148048239,0.151242,99179.0,99175.0,0.0017]
[1740148048441,0.151245,99177.0,99175.0,0.0017]
[1740148048613,0.151246,99176.0,99175.0,0.0017]
[1740148048834,0.151246,99176.0,99175.0,0.0037]
[1740148049034,0.151246,99176.0,99175.0,0.0057]
[1740148049237,0.151246,99176.0,99175.0,0.0037]
[1740148049468,0.15124,99180.0,99175.0,0.0017]
[1740148049760,0.15124,99180.0,99175.0,0.0047]
[1740148049979,0.15636144,99190.0,99175.0,0.0017]
[1740148050386,0.151242,99179.0,99175.0,0.0047]
[1740148050586,0.151246,99176.0,99175.0,0.0047]
[1740148050815,0.151246,99176.0,99175.0,0.0077]
[1740148051194,0.151246,99176.0,99175.0,0.0047]
[1740148051703,0.151246,99176.0,99175.0,0.0017]
[1740148051913,0.151246,99176.0,99175.0,0.0037]
[1740148052086,0.151246,99176.0,99175.0,0.0017]
[1740148052287,0.151246,99176.0,99175.0,0.0047]
[1740148052521,0.151246,99176.0,99175.0,0.0077]
[1740148070318,0.301246,99176.0,99175.0,0.0077]
[1740148070486,0.301246,99176.0,99127.0,0.201759]
[1740148070487,0.151292,99146.0,99131.0,0.325]
[1740148070690,0.151292,99146.0,99127.0,0.0492]
[1740148070691,0.151292,99146.0,99130.0,0.03805246]
[1740148070900,0.151292,99146.0,99145.0,0.00183117]
[1740148071103,0.201698,99158.0,99145.0,0.00183117]
[1740148071345,0.151292,99146.0,99145.0,0.00183117]
[1740148072317,0.151292,99146.0,99145.0,0.00483117]
[1740148073322,0.151292,99146.0,99145.0,0.00783117]
[1740148073917,0.151292,99146.0,99145.0,0.00183117]
[1740148074337,0.152292,99146.0,99145.0,0.00183117]
[1740148075309,0.153292,99146.0,99145.0,0.00183117]
[1740148075723,0.231892,99146.0,99145.0,0.00183117]
[1740148076796,0.230892,99146.0,99145.0,0.00183117]
[1740148077021,0.232892,99146.0,99145.0,0.00183117]
[1740148077348,0.234892,99146.0,99145.0,0.00183117]
[1740148080432,0.005,99146.0,99145.0,0.00183117]
[1740148081355,0.003,99146.0,99145.0,0.00183117]
[1740148081494,0.005,99146.0,99145.0,0.00183117]
[1740148081705,0.09006004,99172.0,99145.0,0.1056872]
[1740148081911,0.09006004,99172.0,99153.0,0.0793]
[1740148082153,0.09006004,99172.0,99166.0,0.15126]
[1740148082370,0.09006004,99172.0,99167.0,0.00772]
[1740148083553,0.09006004,99172.0,99171.0,0.151253]
[1740148084416,0.09006004,99172.0,99168.0,0.10264569]
[1740148084622,0.09006004,99172.0,99171.0,0.151253]
[1740148084853,0.09006004,99172.0,99171.0,0.25389869]
[1740148085230,0.00991354,99192.0,99171.0,0.25389869]
[1740148085231,0.16113554,99192.0,99178.0,0.151243]
[1740148085427,0.16113554,99192.0,99178.0,1.01462871]
[1740148085663,0.00991354,99192.0,99178.0,1.01462871]
[1740148085860,0.15636144,99200.0,99178.0,1.01462871]
[1740148086086,0.151214,99197.0,99182.0,0.151236]
[1740148086336,0.0102848,99198.0,99178.0,1.01462871]
[1740148086536,0.15,99206.0,99182.0,0.10264569]
[1740148086660,0.00023707,99208.0,99183.0,0.10264569]
[1740148087324,0.151204,99204.0,99189.0,0.151226]
[1740148087501,0.00023707,99208.0,99189.0,1.01462871]
[1740148087708,0.00023707,99208.0,99190.0,0.151224]
[1740148087932,0.201606,99204.0,99189.0,1.01462871]
[1740148088119,0.151207,99202.0,99189.0,1.01462871]
[1740148088318,0.002,99197.0,99189.0,1.16585371]
[1740148088663,0.00023707,99208.0,99189.0,1.1172744]
[1740148088863,0.00023707,99208.0,99190.0,0.151224]
[1740148088864,0.151202,99205.0,99190.0,0.151224]
[1740148089077,0.151208,99201.0,99189.0,1.1172744]
[1740148089200,0.151205,99203.0,99189.0,1.1172744]
[1740148089400,0.151205,99203.0,99189.0,1.2715004]
[1740148089620,0.151207,99202.0,99189.0,1.1202744]
[1740148089828,0.151207,99202.0,99189.0,1.1222744]
[1740148090171,0.151206,99202.0,99189.0,1.1172744]
[1740148090674,0.151208,99201.0,99189.0,1.1172744]
[1740148091625,0.01027109,99208.0,99189.0,1.1172744]
[1740148091833,0.151208,99201.0,99189.0,1.1172744]
[1740148092285,0.201606,99204.0,99189.0,1.1172744]
[1740148092614,0.201606,99204.0,99189.0,1.1182744]
[1740148092817,0.2016,99206.0,99189.0,1.2694994]
[1740148093062,0.151205,99203.0,99189.0,1.2695004]
[1740148093333,0.20183307,99208.0,99190.0,0.151224]
[1740148093535,0.151206,99203.0,99190.0,0.151224]
[1740148093684,0.2016,99206.0,99189.0,1.1182744]
[1740148093883,0.151209,99200.0,99189.0,1.1182744]
[1740148094235,0.151208,99202.0,99189.0,1.2694984]
[1740148094384,0.151208,99202.0,99189.0,1.2684984]
[1740148094584,0.151208,99201.0,99189.0,1.2684984]
[1740148094990,0.00023707,99208.0,99193.0,0.151219]
[1740148095191,0.00023707,99208.0,99194.0,0.10264569]
[1740148095398,0.00023707,99208.0,99195.0,0.00772]
[1740148095598,0.151199,99207.0,99195.0,0.158937]
[1740148095795,0.00023707,99208.0,99195.0,0.00772]
[1740148096448,0.00023707,99208.0,99195.0,0.158937]
[1740148096648,0.1512,99206.0,99195.0,0.158937]
[1740148096880,0.151202,99205.0,99195.0,0.158937]
[1740148097288,0.00023707,99208.0,99195.0,0.00772]
[1740148097448,0.151202,99205.0,99196.0,0.151215]
[1740148097652,0.151204,99204.0,99195.0,0.00772]
[1740148097860,0.201602,99206.0,99195.0,0.00772]
[1740148098075,0.151204,99204.0,99195.0,0.00772]
[1740148098260,0.151204,99204.0,99195.0,0.00872]
[1740148098992,0.151204,99204.0,99195.0,0.00972]
[1740148099191,0.201602,99206.0,99195.0,0.01172]
[1740148099404,0.151203,99204.0,99195.0,0.01172]
[1740148099756,0.151203,99204.0,99195.0,0.162937]